bitfinex/quotes_ETHUSD_20260121
["timestamp","ask_amount","ask_price","bid_price","bid_amount"]
[1769018733594,0.001,2896.3,2895.2,7.06866982]
[1769018733922,0.001,2896.3,2895.4,7.06866982]
[1769018734132,6.90297862,2897.3,2895.6,7.06866982]
[1769018734335,0.69029786,2897.2,2895.7,0.70686698]
[1769018734803,0.69029786,2897.2,2895.3,6.99234586]
[1769018734804,7.94762876,2897.2,2895.3,6.99234586]
[1769018735200,7.94762876,2897.2,2895.0,0.07632396]
[1769018735523,7.94762876,2897.2,2894.5,0.07632396]
[1769018735723,17.2586379,2897.1,2894.5,0.07632396]
[1769018735924,7.2573309,2897.0,2894.9,7.06866982]
[1769018736097,1.76125136,2896.9,2895.0,7.69921284]
[1769018736291,9.01858226,2896.9,2895.0,7.69921284]
[1769018736488,9.01858226,2896.9,2895.3,7.06866982]
[1769018736489,1.76125136,2896.9,2895.3,7.06866982]
[1769018736721,3.45172758,2897.1,2895.5,0.07632396]
[1769018736922,4.14191202,2897.2,2895.7,0.07632396]
[1769018737097,18.30247124,2897.2,2895.3,0.07632396]
[1769018737422,18.30247124,2897.2,2895.3,6.99234586]
[1769018737423,11.04514034,2897.2,2895.3,6.99234586]
[1769018737628,7.2573309,2897.1,2895.3,6.99234586]
[1769018737828,1.48508571,2897.0,2895.4,0.56682881]
[1769018738035,6.90393178,2896.9,2895.4,0.56682881]
[1769018738338,6.90393178,2896.9,2895.5,6.99234586]
[1769018738339,3.45196589,2896.9,2895.5,6.99234586]
[1769018738504,0.69029786,2897.2,2895.5,6.99234586]
[1769018738505,3.45172758,2897.1,2895.6,0.07632396]
[1769018738700,3.45172758,2897.1,2895.6,6.99234586]
[1769018738905,0.75936661,2897.0,2895.7,0.69923459]
[1769018739106,3.45135631,2897.5,2895.7,7.76790441]
[1769018739406,6.90131124,2898.0,2896.1,7.06866982]
[1769018739602,3.45065562,2898.0,2896.3,0.07632396]
[1769018739824,7.2573309,2898.1,2896.3,7.06866982]
[1769018739825,6.90112898,2898.1,2896.3,7.06866982]
[1769018740032,0.72573309,2898.0,2896.4,0.70686698]
[1769018740236,6.90012074,2898.5,2896.7,0.07632396]
[1769018740438,6.90012074,2898.5,2896.5,7.06866982]
[1769018740439,3.45006037,2898.5,2896.8,7.06866982]
[1769018740639,3.45073029,2898.8,2897.2,0.07632396]
[1769018740842,3.45073029,2898.8,2897.3,0.07632396]
[1769018741008,3.45076484,2898.8,2897.3,0.07632396]
[1769018741207,0.001,2898.8,2897.5,0.07632396]
[1769018741648,0.001,2898.8,2897.7,0.07632396]
[1769018741843,0.001,2898.8,2897.9,0.07632396]
[1769018742021,0.001,2898.8,2897.7,7.06866982]
[1769018742213,2.88e-06,2899.0,2897.7,7.06866982]
[1769018742409,2.88e-06,2899.0,2897.8,0.56742881]
[1769018743223,2.88e-06,2899.0,2897.3,3.52769761]
[1769018743419,2.88e-06,2899.0,2897.5,0.07632396]
[1769018743641,2.88e-06,2899.0,2897.1,6.99234586]
[1769018743865,7.25733378,2899.0,2896.8,0.07632396]
[1769018744185,7.2573309,2898.8,2896.8,0.76396698]
[1769018744514,7.2573309,2898.8,2896.4,0.07632396]
[1769018744711,7.62490202,2898.9,2897.0,7.06866982]
[1769018745044,7.2573309,2898.8,2897.0,0.07632396]
[1769018745224,7.62490202,2898.9,2897.0,7.06866982]
[1769018745428,7.62490202,2898.9,2897.1,0.07632396]
[1769018745640,0.76249049,2898.8,2897.2,0.70686698]
[1769018745945,6.89964466,2898.7,2897.2,0.70686698]
[1769018746141,6.89964466,2898.7,2896.8,3.52836096]
[1769018746358,6.89964466,2898.7,2897.0,0.07632396]
[1769018746517,10.34946699,2898.7,2896.8,0.07632396]
[1769018746714,17.17349868,2898.7,2896.8,0.07632396]
[1769018747143,6.82403169,2898.6,2896.5,6.87937441]
[1769018747348,6.82403169,2898.4,2896.6,0.69556984]
[1769018747510,6.82403169,2898.4,2896.2,0.07632396]
[1769018747714,6.82403169,2898.4,2896.4,0.07632396]
[1769018747923,6.82403169,2898.4,2896.2,10.4084841]
[1769018747924,10.35089535,2898.3,2896.2,6.95569837]
[1769018748261,10.35089535,2898.3,2895.9,0.07632396]
[1769018748262,6.82403169,2898.2,2895.9,0.07632396]
[1769018748460,6.82403169,2898.2,2896.1,0.07632396]
[1769018748634,1.7174927,2898.1,2896.1,0.07632396]
[1769018748835,1.7174927,2898.1,2895.9,3.52943369]
[1769018749048,6.82403169,2898.0,2895.7,6.87937441]
[1769018749360,6.82403169,2898.0,2895.6,0.571]
[1769018749860,7.0043243,2898.0,2895.6,0.571]
[1769018750036,6.82403169,2897.6,2895.6,0.571]
[1769018750446,6.82403169,2897.6,2895.5,0.002]
[1769018751759,6.82403169,2897.4,2895.5,0.002]
[1769018751928,13.80595724,2897.3,2895.5,0.002]
[1769018752131,8.20462741,2897.2,2895.5,0.002]
[1769018753944,6.90345516,2897.1,2895.5,0.002]
[1769018754147,10.35518274,2897.1,2895.5,0.002]
[1769018754548,6.90345516,2897.1,2895.5,6.88137441]
[1769018754750,6.90345516,2897.1,2895.6,0.07632396]
[1769018754953,6.90345516,2897.1,2895.7,0.69576984]
[1769018755144,6.90345516,2897.1,2895.7,0.69776984]
[1769018755438,6.82403169,2897.0,2895.7,0.002]
[1769018756050,10.35589767,2896.9,2895.7,0.002]
[1769018756362,6.90393178,2896.9,2895.7,0.002]
[1769018758160,6.90350161,2897.1,2895.7,0.002]
[1769018758363,0.82840973,2897.0,2895.7,0.002]
[1769018758772,7.07861076,2897.0,2895.7,0.002]
[1769018760239,16.6060987,2896.9,2895.7,0.002]
[1769018760466,6.90393178,2896.9,2895.7,0.002]
[1769018760674,3.45196589,2896.9,2895.7,0.002]
[1769018760839,7.33196934,2896.9,2895.7,0.002]
[1769018761039,6.25020103,2896.8,2895.5,0.002]
[1769018761874,6.25020103,2896.6,2895.3,0.002]
[1769018762073,6.25020103,2896.6,2894.5,3.84]
[1769018762373,6.25020103,2896.4,2894.6,3.84]
[1769018762575,2.57699714,2896.3,2894.7,0.384]
[1769018762881,2.00599714,2896.3,2894.9,0.07632396]
[1769018763100,2.00599714,2896.3,2894.7,6.70083535]
[1769018763101,6.9048852,2896.5,2894.7,6.70083535]
[1769018763302,6.67823859,2896.9,2894.9,6.31683535]
[1769018763503,0.42803756,2896.9,2895.7,0.07632396]
[1769018763705,0.42803756,2896.9,2895.8,3.84]
[1769018763862,3.45151424,2897.3,2895.8,3.84]
[1769018764200,6.90321688,2897.2,2895.8,3.84]
[1769018764372,3.4511658,2897.6,2895.8,3.84]
[1769018764373,16.60363077,2897.6,2895.8,3.84]
[1769018764570,20.05479657,2897.6,2895.5,6.31683535]
[1769018765497,20.05479657,2897.6,2895.5,9.77046036]
[1769018765696,2.06257966,2897.5,2895.6,0.97704604]
[1769018766258,3.45137019,2897.4,2895.7,6.31683535]
[1769018766459,0.8721817,2897.9,2896.4,6.31683535]
[1769018766460,3.45089378,2897.8,2896.4,6.31683535]
[1769018766660,3.45006037,2898.5,2896.6,6.31683535]
[1769018766889,6.25020103,2898.4,2896.1,6.24051139]
[1769018767195,7.56522768,2898.4,2896.1,6.24051139]
[1769018767500,7.56522768,2898.4,2896.3,6.24051139]
[1769018767705,2.13654692,2898.3,2896.5,6.24051139]
[1769018768101,14.37124148,2898.5,2896.5,6.24051139]
[1769018768392,10.92118111,2898.5,2896.5,6.24051139]
[1769018768616,6.90012074,2898.5,2896.5,6.24051139]
[1769018768925,6.90012074,2898.5,2896.6,6.31683535]
[1769018769428,3.45006037,2898.5,2896.9,6.24051139]
[1769018769586,6.89916864,2898.9,2897.0,6.70083535]
[1769018770103,6.89916864,2898.9,2897.0,6.62451139]
[1769018770424,3.44958432,2898.9,2897.1,6.31683535]
[1769018770613,0.68991715,2898.8,2897.2,0.97704604]
[1769018770996,0.68991715,2898.8,2896.7,3.45210212]
[1769018771196,0.68991715,2898.8,2896.8,6.31683535]
[1769018771427,0.68991715,2898.8,2896.8,6.24051139]
[1769018771922,0.68991715,2898.8,2896.9,7.29190188]
[1769018772114,0.68991715,2898.8,2897.0,3.45182724]
[1769018772316,0.68991715,2898.8,2897.1,0.72918272]
[1769018772524,3.44982233,2898.7,2897.1,4.18090497]
[1769018772844,3.44982233,2898.7,2897.2,6.24051139]
[1769018773125,0.68991715,2898.8,2897.2,6.31683535]
[1769018773329,2.88e-06,2899.0,2897.7,0.07632396]
[1769018773622,6.8990125,2899.0,2897.7,0.63931593]
[1769018773821,6.25020103,2898.9,2897.4,3.84]
[1769018774401,10.34910996,2898.8,2897.4,3.84]
[1769018774924,10.34910996,2898.8,2896.6,6.51632396]
[1769018774925,6.25020103,2898.7,2896.6,0.07632396]
[1769018775101,6.25020103,2898.7,2896.6,3.52857808]
[1769018775312,2.00490143,2898.6,2896.7,4.42908905]
[1769018776220,2.00490143,2898.6,2896.8,3.5283734]
[1769018776424,2.00490143,2898.6,2897.0,3.52815672]
[1769018776425,3.45006037,2898.5,2897.0,3.52815672]
[1769018776724,6.89916864,2898.9,2897.2,6.34046159]
[1769018776919,13.40998973,2898.9,2897.3,0.63404616]
[1769018777221,16.85957405,2898.9,2896.9,3.45192755]
[1769018777415,16.85957405,2898.9,2896.9,6.26413763]
[1769018778042,16.85957405,2898.9,2896.9,9.71609606]
[1769018778232,16.85957405,2898.9,2896.9,9.71609853]
[1769018778544,7.30122226,2898.9,2897.0,6.34046159]
[1769018778826,0.73012251,2898.8,2897.1,0.99662143]
[1769018779601,0.73012251,2898.8,2897.2,6.34046159]
[1769018780124,0.001,2898.7,2897.2,6.34046159]
[1769018780729,0.001,2898.7,2897.3,9.71562694]
[1769018780942,0.001,2898.7,2897.3,6.26413763]
[1769018781143,0.001,2898.7,2897.4,4.55037012]
[1769018781144,0.34507588,2898.6,2897.4,4.55037012]
[1769018781432,0.001,2898.7,2897.7,6.34046159]
[1769018781811,0.001,2898.7,2897.7,6.26413763]
[1769018782016,0.001,2898.7,2897.8,10.18046159]
[1769018782217,2.88e-06,2899.0,2898.2,6.34046159]
[1769018782414,2.88e-06,2899.0,2898.3,0.34286279]
[1769018782943,2.88e-06,2899.0,2897.9,3.84]
[1769018783147,2.88e-06,2899.0,2898.0,6.34046159]
[1769018783427,2.88e-06,2899.0,2897.9,3.84]
[1769018785454,2.88e-06,2899.0,2897.9,6.26413763]
[1769018786451,2.88e-06,2899.0,2897.9,9.71488809]
[1769018786649,2.88e-06,2899.0,2898.0,1.05544517]
[1769018786853,2.88e-06,2899.0,2898.1,3.45053655]
[1769018787057,2.88e-06,2899.0,2898.2,6.34046159]
[1769018787351,2.88e-06,2899.0,2898.2,6.26413763]
[1769018787757,2.88e-06,2899.0,2898.0,4.50603174]
[1769018787954,2.88e-06,2899.0,2897.7,6.26413763]
[1769018787955,2.88e-06,2899.0,2898.1,0.36036301]
[1769018788143,2.88e-06,2899.0,2897.7,6.26413763]
[1769018788658,2.88e-06,2899.0,2897.3,13.55558205]
[1769018788830,2.88e-06,2899.0,2897.3,9.71558205]
[1769018789553,2.88e-06,2899.0,2897.3,6.26413763]
[1769018790124,2.88e-06,2899.0,2897.3,9.7155323]
[1769018790339,2.88e-06,2899.0,2897.4,0.97918563]
[1769018791220,2.88e-06,2899.0,2897.5,9.7153887]
[1769018791423,2.88e-06,2899.0,2897.4,4.50684879]
[1769018791652,2.88e-06,2899.0,2897.5,0.002]
[1769018791852,0.001,2898.8,2897.5,0.002]
[1769018792831,0.001,2898.8,2897.8,6.26413763]
[1769018793031,0.001,2898.8,2897.6,3.84]
[1769018793258,0.001,2898.8,2897.7,3.45101287]
[1769018793436,0.001,2898.8,2897.8,0.72910129]
[1769018793966,0.001,2898.8,2897.9,6.34046159]
[1769018794532,0.001,2898.8,2898.1,6.26413763]
[1769018795156,0.001,2898.8,2898.0,3.84]
[1769018796268,0.001,2898.8,2898.1,6.26413763]
[1769018796448,2.88e-06,2899.0,2898.2,1.01041376]
[1769018797639,2.88e-06,2899.0,2898.0,3.84]
[1769018798041,2.88e-06,2899.0,2898.3,0.07632396]
[1769018798275,6.10876747,2900.4,2898.4,3.84]
[1769018798588,6.10876747,2900.1,2897.9,6.26413763]
[1769018798783,0.03699028,2900.2,2898.0,1.01041376]
[1769018798784,6.10876747,2899.9,2898.0,1.01041376]
[1769018799471,6.10876747,2899.7,2898.0,1.01041376]
[1769018799668,6.10876747,2899.1,2897.5,0.002]
[1769018799903,10.34554107,2899.8,2897.5,6.26613763]
[1769018800181,0.1801736,2899.7,2898.0,3.45065349]
[1769018800338,6.89702738,2899.8,2898.0,9.71479112]
[1769018800537,8.60391581,2899.8,2898.1,0.97147911]
[1769018800733,12.0524295,2899.8,2898.1,0.97147911]
[1769018800934,8.60391581,2899.8,2898.1,0.97147911]
[1769018801173,12.0524295,2899.8,2898.1,0.97147911]
[1769018801376,1.20524295,2899.7,2898.2,0.72356167]
[1769018801584,6.8975031,2899.6,2898.2,0.72356167]
[1769018801877,3.44875155,2899.6,2898.2,0.72356167]
[1769018802046,1.20524295,2899.7,2898.2,4.17388309]
[1769018802047,3.44865696,2899.7,2898.2,4.17388309]
[1769018802252,6.89731392,2899.7,2898.2,0.72356167]
[1769018802451,0.86042024,2899.6,2898.3,0.41740571]
[1769018803772,13.00650845,2899.5,2898.2,0.72356167]
[1769018803939,13.00650845,2899.5,2897.9,7.29075846]
[1769018804438,6.14575775,2899.4,2898.0,3.84]
[1769018805177,6.14575775,2899.4,2898.3,0.002]
[1769018805755,6.8982168,2899.3,2898.3,0.002]
[1769018806262,15.71311444,2899.3,2898.3,0.002]
[1769018806455,6.94079971,2899.2,2898.3,0.002]
[1769018807963,6.89869268,2899.1,2898.3,0.002]
[1769018809972,10.34803902,2899.1,2898.3,0.002]
[1769018810164,12.26448192,2899.1,2898.0,0.002]
[1769018811175,6.89869268,2899.1,2898.0,0.002]
[1769018811473,0.84737032,2899.0,2898.0,0.002]
[1769018811662,6.21315956,2899.0,2898.0,0.002]
[1769018811869,6.89916864,2898.9,2898.0,0.002]
[1769018812575,3.44958432,2898.9,2898.0,0.002]
[1769018813253,12.26495788,2898.9,2898.0,0.002]
[1769018813466,6.67702206,2898.8,2898.0,0.002]
[1769018813656,5.36578924,2898.7,2897.5,0.002]
[1769018814167,5.36578924,2898.5,2897.3,0.002]
[1769018815174,10.34982405,2898.6,2897.3,0.002]
[1769018815479,1.03498241,2898.5,2897.3,0.002]
[1769018816078,6.9003588,2898.4,2897.3,0.002]
[1769018816648,4.48508473,2898.5,2897.3,0.002]
[1769018816856,6.90020464,2898.5,2897.3,5.10821371]
[1769018818745,6.89964466,2898.7,2897.5,0.002]
[1769018819147,11.57089629,2898.7,2897.5,0.002]
[1769018819486,6.89964466,2898.7,2897.5,0.002]
[1769018819660,3.44982233,2898.7,2897.5,8.65422905]
[1769018819844,3.44982233,2898.7,2897.6,0.86542291]
[1769018820049,0.001,2898.8,2897.6,5.67765196]
[1769018820249,3.45071088,2898.8,2897.6,5.67765196]
[1769018820549,0.001,2898.8,2897.6,5.67765196]
[1769018820750,0.001,2898.8,2897.8,4.81222905]
[1769018820980,0.001,2898.8,2897.9,5.63855324]
[1769018821881,0.001,2898.8,2897.9,0.82632419]
[1769018822078,0.001,2898.8,2897.5,3.45318975]
[1769018822381,0.001,2898.8,2897.5,0.002]
[1769018822598,0.001,2898.8,2897.5,4.81422905]
[1769018822881,0.001,2898.8,2897.7,4.81222905]
[1769018823260,4.67125163,2898.7,2897.5,0.002]
[1769018823468,4.67125163,2898.5,2897.3,0.002]
[1769018824657,4.67125163,2898.3,2897.3,0.002]
[1769018825353,6.9003588,2898.4,2897.3,0.002]
[1769018825888,3.4501794,2898.4,2897.3,0.002]
[1769018826193,6.9003588,2898.4,2897.3,0.002]
[1769018826366,0.69003588,2898.3,2897.3,0.002]
[1769018826904,6.900835,2898.2,2897.3,0.002]
[1769018827107,0.46722516,2898.6,2897.3,0.002]
[1769018827409,6.8998827,2898.6,2897.3,0.002]
[1769018828299,3.45082178,2898.8,2897.4,3.84]
[1769018828612,0.001,2898.8,2897.6,4.81222905]
[1769018829104,0.001,2898.8,2897.7,4.81222905]
[1769018830809,0.001,2898.8,2897.8,4.81222905]
[1769018831018,0.001,2898.8,2897.9,0.48122291]
[1769018831528,0.001,2898.8,2897.5,3.45321435]
[1769018831814,0.001,2898.8,2897.5,0.002]
[1769018832610,4.67225163,2898.8,2897.5,0.002]
[1769018833226,6.89964466,2898.7,2897.5,0.002]
[1769018833399,3.44982233,2898.7,2897.5,0.002]
[1769018833595,1.15718136,2898.6,2897.5,0.002]
[1769018833801,1.10718136,2898.6,2897.5,0.002]
[1769018834292,3.45070456,2898.8,2897.5,4.81422905]
[1769018834488,6.90040912,2898.8,2897.5,4.81422905]
[1769018834688,0.001,2898.8,2897.5,4.81422905]
[1769018835090,0.001,2898.8,2897.7,4.81222905]
[1769018835310,0.001,2898.8,2897.8,5.67745195]
[1769018836741,4.18056218,2898.8,2897.5,0.002]
[1769018836885,4.21655246,2898.2,2897.3,0.002]
[1769018837318,6.9010731,2898.1,2897.3,0.002]
[1769018837531,1.11176256,2898.0,2897.3,0.002]
[1769018839323,3.44994135,2898.6,2897.3,0.002]
[1769018839825,10.34982405,2898.6,2897.3,0.002]
[1769018840620,4.17956218,2898.5,2897.3,0.002]
[1769018841430,6.9003588,2898.4,2897.3,0.002]
[1769018841830,10.3505382,2898.4,2897.3,0.002]
[1769018842041,14.53010038,2898.4,2897.3,0.002]
[1769018842240,1.45301004,2898.3,2897.3,0.002]
[1769018842453,4.17956218,2898.2,2896.9,0.002]
[1769018842612,0.03699028,2897.8,2896.9,0.002]
[1769018842817,4.21655246,2897.8,2896.9,1.92e-06]
[1769018843043,0.42165525,2897.7,2896.9,1.92e-06]
[1769018843432,3.45113197,2897.6,2896.9,1.92e-06]
[1769018844068,0.42165525,2897.7,2896.9,1.92e-06]
[1769018844210,3.45084993,2897.9,2896.9,1.92e-06]
[1769018844414,3.45169838,2898.0,2896.9,1.92e-06]
[1769018844912,0.001,2898.0,2896.9,1.92e-06]
[1769018845235,0.001,2898.0,2896.9,4.32066625]
[1769018845544,0.001,2898.0,2897.0,3.88384149]
[1769018845849,0.001,2898.0,2897.0,0.43206663]
[1769018846344,0.001,2898.0,2897.0,3.88387919]
[1769018846541,0.001,2898.0,2897.0,8.20454352]
[1769018847319,0.001,2898.8,2897.1,4.32066433]
[1769018847630,0.6900224,2898.7,2897.3,3.45148931]
[1769018847950,4.17956218,2898.6,2897.2,0.72624085]
[1769018848114,4.17956218,2898.6,2896.9,1.92e-06]
[1769018848530,7.5896841,2898.7,2897.1,3.45166479]
[1769018848737,7.5896841,2898.7,2896.9,3.45187357]
[1769018849033,11.76924628,2898.7,2897.0,3.45183825]
[1769018849229,11.76924628,2898.7,2896.9,1.92e-06]
[1769018849416,1.17702463,2898.6,2897.2,3.45159381]
[1769018849617,8.07709505,2898.6,2897.0,4.75273095]
[1769018849917,15.70669244,2898.6,2897.0,0.43206662]
[1769018850115,15.70669244,2898.6,2896.9,1.92e-06]
[1769018850517,12.25665723,2898.6,2896.9,1.92e-06]
[1769018850719,15.70669244,2898.6,2896.9,1.92e-06]
[1769018851454,12.25665723,2898.6,2896.9,1.92e-06]
[1769018851855,1.17702463,2898.6,2896.9,4.32066625]
[1769018852073,3.4498465,2898.7,2897.0,4.32066433]
[1769018852257,0.001,2898.8,2897.2,4.32066433]
[1769018852563,6.90053936,2898.8,2897.2,4.32066433]
[1769018852764,10.35030904,2898.8,2897.2,4.32066433]
[1769018852965,4.17956218,2898.3,2897.1,3.84]
[1769018853184,0.42165525,2898.2,2897.1,3.84]
[1769018853336,0.42165525,2898.2,2897.0,3.84]
[1769018853533,0.42165525,2898.2,2897.0,8.16066433]
[1769018853736,0.42165525,2898.2,2897.0,11.61250729]
[1769018854161,0.42165525,2898.2,2897.0,15.06435402]
[1769018854368,3.44995391,2898.6,2897.1,4.32066433]
[1769018854548,0.001,2898.2,2897.1,4.32066433]
[1769018855645,0.001,2898.2,2897.2,3.45160844]
[1769018855844,0.001,2898.2,2897.2,7.77227277]
[1769018856052,0.001,2898.2,2897.2,11.22388121]
[1769018856560,0.001,2898.2,2897.3,4.32066433]
[1769018857671,0.001,2898.2,2897.0,3.84]
[1769018857988,0.001,2898.2,2897.0,7.29178877]
[1769018858287,0.001,2898.2,2897.0,10.7436355]
[1769018858661,0.001,2898.2,2897.1,3.84]
[1769018858990,4.18056218,2898.2,2897.1,3.84]
[1769018859284,4.5976184,2898.1,2897.1,3.84]
[1769018859457,4.5976184,2898.1,2896.9,1.92e-06]
[1769018859458,4.5976184,2898.1,2897.0,3.84]
[1769018860082,11.08087342,2898.0,2896.9,1.92e-06]
[1769018860283,4.17956218,2897.9,2896.9,1.92e-06]
[1769018862089,6.90178756,2897.8,2896.9,1.92e-06]
[1769018862288,1.10813497,2897.7,2896.9,1.92e-06]
[1769018864159,3.45113197,2897.6,2896.9,1.92e-06]
[1769018866093,3.60606321,2897.5,2896.9,1.92e-06]
[1769018866389,7.05733588,2897.5,2896.9,1.92e-06]
[1769018866588,10.50860855,2897.5,2896.9,1.92e-06]
[1769018866788,1.05086086,2897.4,2897.1,0.002]
[1769018866991,1.05086086,2897.4,2896.9,1.92e-06]
[1769018867789,3.45095521,2897.8,2896.9,1.92e-06]
[1769018868288,3.45169592,2898.0,2896.9,1.92e-06]
[1769018868896,0.001,2898.0,2896.9,1.92e-06]
[1769018869265,3.60706321,2898.0,2896.2,3.84]
[1769018869464,0.03699028,2897.5,2895.9,3.84]
[1769018869665,3.64305349,2897.5,2895.8,7.61810543]
[1769018870085,3.64305349,2897.5,2895.9,3.4530608]
[1769018870685,3.64305349,2897.5,2895.8,11.07132271]
[1769018870686,6.90274038,2897.4,2895.8,11.07132271]
[1769018871089,3.60606321,2897.3,2895.8,7.61810543]
[1769018871289,1.05088036,2897.2,2895.8,7.61810543]
[1769018871701,3.60606321,2897.1,2895.8,3.84]
[1769018871910,3.60606321,2897.1,2895.7,0.002]
[1769018872400,1.05088036,2897.2,2895.7,0.002]
[1769018872401,3.64305349,2896.5,2895.7,0.002]
[1769018872587,3.64305349,2896.5,2894.9,0.002]
[1769018872901,3.60606321,2896.3,2894.9,0.002]
[1769018874199,3.60606321,2895.5,2894.2,0.002]
[1769018874400,4.17706321,2895.4,2894.2,0.002]
[1769018874611,4.02376953,2895.3,2894.2,0.002]
[1769018874970,3.60606321,2895.1,2894.2,0.002]
[1769018875172,3.60606321,2895.1,2894.1,0.002]
[1769018875407,3.60606321,2895.1,2894.0,0.002]
[1769018875907,0.571,2895.0,2894.0,0.002]
[1769018876092,0.41770632,2894.9,2894.0,0.002]
[1769018876293,4.02376953,2894.9,2893.5,0.002]
[1769018876495,3.60606321,2894.9,2893.5,0.002]
[1769018876871,6.90917884,2894.7,2893.5,0.002]
[1769018877278,3.45458942,2894.7,2893.5,0.002]
[1769018877473,7.48017884,2894.7,2893.5,0.002]
[1769018877689,1.1086242,2894.6,2893.5,0.002]
[1769018878108,3.64305349,2894.5,2893.5,0.002]
[1769018878973,6.90989496,2894.4,2893.5,0.002]
[1769018879178,3.5663627,2894.3,2893.5,0.002]
[1769018879380,3.5663627,2894.3,2893.0,0.002]
[1769018879596,4.61398847,2894.2,2893.0,0.002]
[1769018880293,4.61398847,2894.2,2892.8,5.74e-06]
[1769018881013,3.45542501,2894.0,2892.8,5.74e-06]
[1769018881179,7.0217224,2894.1,2892.8,5.74e-06]
[1769018881378,0.80693482,2894.0,2892.8,5.74e-06]
[1769018881789,4.37329752,2894.0,2892.8,5.74e-06]
[1769018882804,0.80693482,2894.0,2892.8,5.74e-06]
[1769018883113,6.91108884,2893.9,2892.8,5.74e-06]
[1769018883321,10.47745154,2893.9,2892.8,5.74e-06]
[1769018883614,1.47398535,2893.8,2892.8,5.74e-06]
[1769018884116,7.02096364,2894.7,2892.8,3.4226132]
[1769018884418,0.571,2894.9,2892.8,3.4226132]
[1769018884613,3.45423143,2895.0,2893.0,3.42260746]
[1769018884919,3.5663627,2894.9,2893.0,3.42260746]
[1769018885119,0.60799028,2895.1,2893.1,4.18274897]
[1769018885120,7.02095212,2894.7,2893.1,4.18274897]
[1769018885289,3.45458942,2894.7,2893.1,7.60535643]
[1769018885486,6.90917884,2894.7,2893.1,4.14886821]
[1769018885888,3.45458942,2894.7,2893.1,7.60532998]
[1769018886207,6.90917884,2894.7,2893.1,7.60532998]
[1769018886407,0.79566614,2894.6,2893.2,0.43204673]
[1769018886611,0.79566614,2894.6,2893.2,3.85465419]
[1769018886915,0.41770632,2895.3,2893.2,3.93097815]
[1769018887118,3.87160055,2895.3,2893.4,3.49893142]
[1769018887308,0.41770632,2895.3,2893.4,3.49893142]
[1769018887626,3.87159511,2895.3,2893.4,3.49893142]
[1769018887917,3.87159511,2895.3,2893.6,3.42260746]
[1769018888317,7.3254839,2895.3,2893.6,3.42260746]
[1769018889122,10.8918466,2895.3,2893.6,3.42260746]
[1769018889313,3.5663627,2895.2,2893.6,3.42260746]
[1769018889617,3.5663627,2895.2,2893.6,6.87847344]
[1769018889790,1.08918466,2895.1,2893.6,3.42260746]
[1769018889996,1.08918466,2895.1,2893.6,3.45589774]
[1769018890397,1.08918466,2895.1,2893.5,6.87857491]
[1769018890714,3.5663627,2895.0,2892.9,3.42260746]
[1769018891085,3.45435075,2894.9,2893.0,3.45653009]
[1769018891331,0.70207135,2894.8,2893.1,4.11052122]
[1769018891499,3.45435075,2894.9,2893.1,4.11052122]
[1769018892015,3.45428126,2895.0,2893.1,4.11052122]
[1769018892219,6.90856252,2895.0,2893.1,4.11052122]
[1769018892516,3.45428126,2895.0,2893.1,4.11052122]
[1769018892720,6.90856252,2895.0,2893.1,7.95052122]
[1769018892929,4.02080929,2894.9,2893.2,0.47039372]
[1769018893220,3.45447008,2894.8,2893.3,3.45626101]
[1769018893397,3.45447008,2894.8,2893.3,10.33512948]
[1769018893600,3.90884615,2894.9,2893.4,3.42260746]
[1769018894104,3.90884615,2894.9,2893.2,3.9267302]
[1769018894105,10.92960841,2894.9,2893.2,3.9267302]
[1769018894319,3.5663627,2894.7,2893.1,3.84]
[1769018894530,3.5663627,2894.7,2892.8,3.45683712]
[1769018894732,3.5663627,2894.7,2892.8,3.4226132]
[1769018895241,3.5663627,2894.7,2892.8,5.74e-06]
[1769018895242,1.07630034,2894.7,2892.8,5.74e-06]
[1769018895409,3.5663627,2894.6,2892.8,0.72626706]
[1769018895812,3.41263422,2894.2,2892.8,5.74e-06]
[1769018897259,0.84,2894.8,2892.2,3.29698098]
[1769018897464,1.23953089,2894.6,2892.2,3.12914757]
[1769018897963,1.23953089,2894.0,2891.5,3.29698098]
[1769018898156,1.23953089,2894.0,2891.6,3.29698098]
[1769018898338,1.23947789,2893.8,2891.7,0.67553551]
[1769018898658,1.23947789,2893.4,2891.4,0.002]
[1769018898968,5.53803274,2893.5,2891.4,0.002]
[1769018898969,1.23947789,2893.2,2891.4,0.002]
[1769018899332,0.571,2893.1,2891.4,3.29898098]
[1769018899741,3.45590268,2893.6,2891.4,3.29898098]
[1769018899950,1.93054136,2893.5,2891.6,3.29698098]
[1769018900551,1.23936419,2893.5,2891.6,3.29698098]
[1769018901252,1.23936419,2893.5,2891.5,0.3298981]
[1769018901452,5.53803274,2893.5,2891.4,0.002]
[1769018901651,1.23928738,2893.4,2891.4,0.002]
[1769018902033,1.23922783,2893.3,2891.4,3.29898098]
[1769018902239,10.36842468,2893.4,2891.6,3.29698098]
[1769018902858,11.60765251,2893.4,2891.6,3.29698098]
[1769018903064,11.60765251,2893.4,2891.7,3.62667908]
[1769018903065,1.16076525,2893.3,2891.7,3.62667908]
[1769018903356,1.16076525,2893.3,2891.7,3.29698098]
[1769018903558,1.81116548,2893.8,2891.8,3.29698098]
[1769018903863,0.67775636,2893.9,2891.8,3.29698098]
[1769018904037,1.81108782,2894.3,2891.8,3.29698098]
[1769018904237,1.81108782,2894.3,2891.7,6.91634678]
[1769018904238,6.91037246,2894.2,2892.0,3.29698098]
[1769018904556,3.45518623,2894.2,2892.0,3.29698098]
[1769018904732,6.90941752,2894.6,2892.2,3.29698098]
[1769018905164,10.36412628,2894.6,2892.2,3.29698098]
[1769018905457,1.03641263,2894.5,2892.4,3.29698098]
[1769018905772,0.572,2894.8,2892.4,3.29698098]
[1769018907465,0.572,2894.8,2892.6,3.29698098]
[1769018907839,0.572,2895.0,2892.6,3.29698098]
[1769018908057,1.23789956,2894.9,2892.6,3.29698098]
[1769018908531,5.53803274,2894.7,2892.6,3.29698098]
[1769018908731,1.23789956,2894.5,2892.6,3.29698098]
[1769018909345,1.23789956,2894.5,2892.3,0.3296981]
[1769018909540,1.23691116,2894.3,2892.2,3.29698098]
[1769018909751,13.81978992,2894.4,2892.2,3.29698098]
[1769018910152,1.23596585,2894.3,2892.2,3.29698098]
[1769018910954,1.80796585,2894.3,2892.2,3.29698098]
[1769018911148,1.23503378,2894.2,2892.2,3.29698098]
[1769018911471,0.18070338,2894.1,2892.4,3.29698098]
[1769018911768,6.91085002,2894.0,2892.4,3.29698098]
[1769018912266,3.45482812,2894.5,2892.5,3.29698098]